bitfinex-derivatives/quotes_SOLF0:USTF0_20260220
["timestamp","ask_amount","ask_price","bid_price","bid_amount"]
[1771599787936,14.3287869,84.269,84.199,10.6921]
[1771599788138,3.6454869,84.268,84.181,3.7342557]
[1771599789340,3.6454869,84.268,84.16,37.10906747]
[1771599789538,3.6454869,84.268,84.161,3.7342557]
[1771599789741,3.6454869,84.268,84.166,3.7342557]
[1771599790145,3.6454869,84.247,84.14,40.84332317]
[1771599790448,3.6454869,84.247,84.161,3.7342557]
[1771599790947,3.6454869,84.275,84.203,10.6915]
[1771599791136,3.6454869,84.275,84.157,3.7342557]
[1771599791340,3.6454869,84.275,84.093,166.532]
[1771599791341,3.6454869,84.225,84.115,3.7342557]
[1771599791547,3.6454869,84.225,84.121,3.7342557]
[1771599791746,3.6454869,84.225,84.122,4.90291448]
[1771599791937,3.6454869,84.225,84.123,4.90291448]
[1771599792145,0.56493803,84.209,84.124,4.90291448]
[1771599792342,0.56493803,84.209,84.125,4.90291448]
[1771599792540,0.56493803,84.209,84.09,37.10906747]
[1771599792541,0.56493803,84.209,84.149,10.6984]
[1771599792741,0.56493803,84.209,84.103,3.7342557]
[1771599792936,21.3616,84.289,84.098,166.5215]
[1771599792937,0.58936146,84.235,84.111,3.7342557]
[1771599793151,0.58936146,84.235,84.131,3.7342557]
[1771599793346,0.58936146,84.229,84.132,4.54202107]
[1771599793643,0.58936146,84.229,84.106,3.7342557]
[1771599793843,0.58936146,84.229,84.111,3.7342557]
[1771599794154,37.10906747,84.23,84.14,10.6996]
[1771599794155,0.58936146,84.216,84.14,10.6996]
[1771599794340,0.58936146,84.216,84.113,3.7342557]
[1771599794542,0.58936146,84.216,84.115,3.7342557]
[1771599794738,21.3618,84.288,84.11,99.10906747]
[1771599794739,0.5785628,84.249,84.117,3.7342557]
[1771599794942,0.5785628,84.229,84.119,3.7342557]
[1771599795148,0.5785628,84.214,84.138,10.6998]
[1771599795446,37.10906747,84.25,84.11,99.10906747]
[1771599795447,0.5785628,84.249,84.14,3.7342557]
[1771599795646,0.5785628,84.249,84.141,4.54899526]
[1771599795945,0.5785628,84.224,84.14,3.7342557]
[1771599796149,0.5785628,84.224,84.141,4.54762952]
[1771599796350,0.5785628,84.224,84.14,3.7342557]
[1771599796351,0.5785628,84.224,84.142,4.54953739]
[1771599796551,0.5785628,84.224,84.143,4.54955116]
[1771599796849,0.5785628,84.224,84.144,4.54955116]
[1771599797047,0.5785628,84.224,84.116,3.7342557]
[1771599797244,0.58574473,84.25,84.131,3.7342557]
[1771599797449,0.58574473,84.25,84.151,3.7342557]
[1771599797646,0.58574473,84.25,84.153,3.7342557]
[1771599797952,0.58574473,84.25,84.155,3.7342557]
[1771599798151,0.58574473,84.25,84.157,3.7342557]
[1771599798448,0.58574473,84.25,84.159,3.7342557]
[1771599798652,0.56743083,84.289,84.171,3.7342557]
[1771599798947,37.10906747,84.29,84.173,3.7342557]
[1771599798948,0.56743083,84.262,84.173,3.7342557]
[1771599799249,0.56743083,84.262,84.17,37.10906747]
[1771599799250,0.56743083,84.262,84.175,3.7342557]
[1771599799446,0.56743083,84.262,84.176,4.54948388]
[1771599799645,0.56743083,84.262,84.175,3.7342557]
[1771599799949,0.56743083,84.262,84.177,3.7342557]
[1771599800148,37.10906747,84.29,84.191,10.6931]
[1771599800149,10.6821,84.278,84.191,10.6931]
[1771599800343,10.6821,84.278,84.179,3.7342557]
[1771599800344,0.56743083,84.286,84.179,3.7342557]
[1771599800545,166.1174,84.303,84.151,3.7342557]
[1771599800546,0.61127643,84.269,84.151,3.7342557]
[1771599800747,0.61127643,84.269,84.171,3.7342557]
[1771599800948,187.4414,84.319,84.173,3.7342557]
[1771599800949,0.61127643,84.295,84.173,3.7342557]
[1771599801149,37.10906747,84.31,84.175,3.7342557]
[1771599801150,10.6832,84.27,84.175,3.7342557]
[1771599801348,10.6832,84.27,84.177,3.7342557]
[1771599801545,0.61127643,84.291,84.179,3.7342557]
[1771599801752,0.61127643,84.289,84.191,3.7342557]
[1771599802648,166.1042,84.31,84.161,3.7342557]
[1771599802649,0.56843027,84.269,84.161,3.7342557]
[1771599802848,0.56843027,84.269,84.162,3.7342557]
[1771599803252,0.56843027,84.269,84.164,3.7342557]
[1771599804050,0.56843027,84.269,84.15,37.10906747]
[1771599804051,0.56843027,84.269,84.151,3.7342557]
[1771599804554,0.56843027,84.269,84.158,3.7342557]
[1771599805245,10.6872,84.239,84.167,14.4304557]
[1771599805444,0.58731864,84.297,84.171,3.7342557]
[1771599805644,0.58731864,84.297,84.191,3.7342557]
[1771599805847,0.58731864,84.289,84.191,3.7342557]
[1771599806049,0.58731864,84.269,84.151,3.7342557]
[1771599806349,0.58731864,84.269,84.173,3.79905505]
[1771599806551,0.42713773,84.294,84.191,3.79905505]
[1771599806748,0.42713773,84.294,84.167,166.3842]
[1771599806749,0.42713773,84.318,84.231,3.79905505]
[1771599807344,10.6848,84.257,84.201,3.79905505]
[1771599807547,0.42713773,84.287,84.201,3.79905505]
[1771599807750,166.1324,84.296,84.161,3.79905505]
[1771599807751,0.42713773,84.268,84.161,3.79905505]
[1771599807950,0.42713773,84.255,84.161,3.79905505]
[1771599808448,10.6913,84.206,84.121,3.80427466]
[1771599808649,10.6913,84.206,84.123,3.80427466]
[1771599808850,10.6936,84.188,84.123,3.80427466]
[1771599809057,10.6936,84.188,84.096,3.80427466]
[1771599809252,0.41669853,84.229,84.101,3.80427466]
[1771599809451,0.41669853,84.229,84.121,3.80427466]
[1771599809648,0.41669853,84.229,84.141,3.80427466]
[1771599809857,0.41669853,84.249,84.143,3.80427466]
[1771599810054,0.41669853,84.226,84.116,3.80427466]
[1771599810259,0.41669853,84.226,84.118,3.80427466]
[1771599810562,10.6919,84.201,84.123,3.79634793]
[1771599810856,0.41669853,84.226,84.125,3.79634793]
[1771599811056,21.6285292,84.289,84.088,166.542]
[1771599811057,0.43255198,84.275,84.165,3.79634793]
[1771599811254,0.43255198,84.275,84.117,166.4842]
[1771599811255,0.43255198,84.275,84.171,3.79634793]
[1771599811455,37.10906747,84.27,84.173,3.79634793]
[1771599811655,10.689,84.224,84.174,3.94758672]
[1771599811851,0.43255198,84.245,84.149,3.79634793]
[1771599812052,0.43255198,84.245,84.13,37.10906747]
[1771599812053,0.43255198,84.245,84.151,3.79634793]
[1771599812257,0.43255198,84.245,84.153,3.79634793]
[1771599812452,0.41314239,84.27,84.155,3.80605272]
[1771599812658,0.41314239,84.27,84.157,3.80605272]
[1771599812853,0.41314239,84.27,84.159,3.80605272]
[1771599813051,166.0985,84.313,84.116,166.4854]
[1771599813052,0.41314239,84.295,84.171,3.80605272]
[1771599813255,37.10906747,84.32,84.205,3.80605272]
[1771599813559,0.41314239,84.318,84.211,3.80605272]
[1771599813759,10.6807,84.289,84.213,3.80605272]
[1771599814056,10.6807,84.289,84.21,37.10906747]
[1771599814057,0.41314239,84.37,84.251,3.80605272]
[1771599814262,403.4281,84.4,84.294,3.80605272]
[1771599814263,275.02220986,84.4,84.294,3.80605272]
[1771599814463,0.41314239,84.399,84.296,3.78680174]
[1771599816360,0.46589632,84.359,84.287,5.631e-05]
[1771599816562,0.46589632,84.339,84.249,3.77967576]
[1771599816755,0.46589632,84.359,84.249,3.77967576]
[1771599816959,10.6759,84.327,84.241,3.77967576]
[1771599817161,0.45018227,84.324,84.241,3.77967576]
[1771599817662,0.44998112,84.309,84.215,3.8201504]
[1771599817862,0.44998112,84.289,84.181,3.8201504]
[1771599818562,166.1075,84.309,84.181,3.8201504]
[1771599818563,0.45487022,84.279,84.181,3.8201504]
[1771599818867,0.45487022,84.307,84.181,3.8201504]
[1771599819159,10.6788,84.305,84.219,3.8201504]
[1771599819368,0.45487022,84.307,84.219,3.8201504]
[1771599819566,37.10906747,84.33,84.219,3.8201504]
[1771599819767,0.45487022,84.329,84.219,3.8201504]
[1771599820066,0.45487022,84.329,84.221,3.8201504]
[1771599820461,0.52585896,84.319,84.221,3.8201504]
[1771599820659,0.52585896,84.299,84.195,3.8201504]
[1771599820961,0.52585896,84.279,84.195,3.8201504]
[1771599821269,166.0835,84.321,84.166,3.8201504]
[1771599821270,0.52585896,84.259,84.166,3.8201504]
[1771599821464,0.52585896,84.239,84.139,3.8201504]
[1771599821770,0.52585896,84.239,84.142,3.8201504]
[1771599822163,0.52585896,84.199,84.091,3.8201504]
[1771599822569,37.10906747,84.22,84.091,3.8201504]
[1771599822770,10.6902,84.215,84.135,3.8201504]
[1771599822962,0.4924058,84.229,84.135,3.8201504]
[1771599823463,37.10906747,84.22,84.135,3.8201504]
[1771599823669,0.4924058,84.219,84.135,3.8201504]
[1771599823867,0.4924058,84.239,84.135,3.8201504]
[1771599824170,37.10906747,84.22,84.135,3.8201504]
[1771599824360,10.6934,84.19,84.111,3.8201504]
[1771599824562,166.226,84.248,84.111,3.8201504]
[1771599824563,166.2948,84.214,84.111,3.8201504]
[1771599824865,0.45797995,84.199,84.111,3.8201504]
[1771599825167,0.45797995,84.199,84.076,3.8201504]
[1771599825373,0.45797995,84.179,84.076,3.8201504]
[1771599825574,37.10906747,84.16,84.076,3.8201504]
[1771599825766,0.45797995,84.176,84.076,3.8201504]
[1771599826068,0.45797995,84.176,84.019,166.6784]
[1771599826069,0.45797995,84.169,84.054,3.8201504]
[1771599826458,37.10906747,84.15,84.054,3.8201504]
[1771599826663,0.45797995,84.169,84.067,3.8201504]
[1771599826862,37.10906747,84.19,84.071,3.8201504]
[1771599827063,10.6961,84.168,84.081,3.8201504]
[1771599827261,0.39143077,84.185,84.081,3.8201504]
[1771599827466,0.39143077,84.169,84.051,3.8201504]
[1771599827663,0.39143077,84.195,84.088,3.8201504]
[1771599827860,0.39143077,84.169,84.062,3.8201504]
[1771599828265,10.6984,84.15,84.064,3.8201504]
[1771599828460,37.10906747,84.19,84.066,3.8201504]
[1771599828660,37.10906747,84.19,84.068,3.8201504]
[1771599828661,0.37218145,84.189,84.068,3.8201504]
[1771599828864,0.37218145,84.189,84.07,3.8201504]
[1771599829163,0.37218145,84.189,84.072,3.8201504]
[1771599829367,0.37218145,84.189,84.074,3.8201504]
[1771599829566,10.6952,84.175,84.09,3.8201504]
[1771599829760,10.6952,84.175,84.091,3.91310473]
[1771599829960,0.37218145,84.189,84.07,37.10906747]
[1771599829961,10.6984,84.15,84.093,3.8201504]
[1771599830167,0.37218145,84.189,84.094,3.91448746]
[1771599830372,37.10906747,84.21,84.096,3.8201504]
[1771599830667,37.10906747,84.21,84.095,3.91448746]
[1771599830668,0.34788221,84.189,84.1,3.83082579]
[1771599830972,0.34788221,84.189,84.102,3.83082579]
[1771599831272,0.34788221,84.189,84.08,37.10906747]
[1771599831273,0.34788221,84.189,84.104,3.83082579]
[1771599831666,0.34788221,84.189,84.106,3.83082579]
[1771599831869,37.10906747,84.23,84.108,3.83082579]
[1771599832061,0.34788221,84.229,84.129,3.83082579]
[1771599832267,0.34788221,84.229,84.12,37.10906747]
[1771599832268,0.34788221,84.229,84.131,3.83082579]
[1771599832569,10.6895,84.22,84.135,3.8201504]
[1771599832768,0.38537004,84.249,84.137,3.8201504]
[1771599833076,0.38537004,84.229,84.137,3.8201504]
[1771599834675,10.6923,84.198,84.137,3.8201504]
[1771599835177,37.10906747,84.25,84.137,3.8201504]
[1771599835371,0.39634865,84.249,84.149,3.8201504]
[1771599835872,37.10906747,84.27,84.151,3.8201504]
[1771599836567,0.39634865,84.276,84.189,3.8201504]
[1771599836872,166.0429,84.341,84.189,3.8201504]
[1771599836873,0.39503772,84.269,84.189,3.8201504]
[1771599837076,0.39503772,84.269,84.15,37.10906747]
[1771599837077,0.39503772,84.269,84.152,3.8201504]
[1771599837372,166.0795,84.323,84.152,3.8201504]
[1771599837373,37.10906747,84.29,84.152,3.8201504]
[1771599837768,0.39503772,84.293,84.202,3.8201504]
[1771599837969,0.39503772,84.309,84.202,3.8201504]
[1771599838276,0.39503772,84.309,84.203,3.8201504]
[1771599838471,0.38735167,84.339,84.211,3.8201504]
[1771599838975,10.6781,84.31,84.238,3.8201504]
[1771599839164,0.38735167,84.339,84.238,3.8201504]
[1771599839572,0.38735167,84.339,84.24,3.8201504]
[1771599840168,0.38735167,84.319,84.22,62.0]
[1771599840372,0.38735167,84.299,84.208,3.8201504]
[1771599840564,10.6817,84.282,84.208,3.8201504]
[1771599840765,37.50688568,84.28,84.161,3.8201504]
[1771599840970,0.39781821,84.279,84.161,3.8201504]
[1771599841167,10.6862,84.246,84.168,3.8201504]
[1771599841367,37.10906747,84.3,84.181,3.8201504]
[1771599841580,0.39781821,84.33,84.197,3.8201504]
[1771599841872,0.39781821,84.299,84.211,3.8201504]
[1771599842079,0.39781821,84.279,84.185,3.8201504]
[1771599842371,0.39781821,84.279,84.186,3.8201504]
[1771599842574,0.1419331,84.279,84.186,3.8201504]
[1771599842974,0.1419331,84.259,84.141,3.93380034]
[1771599843280,0.1419331,84.239,84.141,3.93380034]
[1771599843479,37.10906747,84.22,84.141,3.93380034]
[1771599843776,0.1419331,84.219,84.111,3.93380034]
[1771599843967,166.249,84.237,84.111,3.93380034]
[1771599843968,0.1419331,84.199,84.111,3.93380034]
[1771599844167,0.1419331,84.199,84.121,10.702]
[1771599844371,0.18771802,84.219,84.111,3.93380034]
[1771599844677,0.18771802,84.199,84.111,3.93380034]
[1771599844877,0.18771802,84.179,84.081,3.91090789]
[1771599845081,10.6954,84.174,84.093,3.91090789]
[1771599845374,24.7221521,84.2,84.093,3.91090789]
[1771599845576,10.6934,84.19,84.121,3.92819586]
[1771599845876,24.91565293,84.18,84.091,3.92819586]
[1771599846075,24.7221521,84.2,84.111,10.7033]
[1771599846373,24.7221521,84.21,84.072,166.5721]
[1771599846577,10.6936,84.188,84.11,10.7033]
[1771599846776,0.15437707,84.209,84.111,3.93046976]
[1771599846977,24.7221521,84.19,84.111,3.93046976]
[1771599847280,10.6975,84.157,84.084,10.7067]
[1771599847477,0.15595423,84.189,84.084,3.93046976]
[1771599847774,24.7221521,84.17,84.084,3.93046976]
[1771599847981,24.8780672,84.19,84.084,3.93046976]
[1771599848180,24.7221521,84.21,84.091,3.93048933]
[1771599848372,0.1559151,84.217,84.128,3.93028501]
[1771599848772,0.15632375,84.209,84.07,28.65243711]
[1771599848983,24.7221521,84.19,84.096,3.93028501]
[1771599849182,0.15632375,84.209,84.096,3.93028501]
[1771599849389,0.15632375,84.189,84.096,3.93028501]
[1771599849681,0.15632375,84.189,84.109,3.93028501]
[1771599849884,0.15632375,84.214,84.109,3.93028501]
[1771599850279,0.15632375,84.214,84.129,3.93028501]
[1771599851387,21.3677,84.265,84.172,3.9340772]
[1771599851388,2.06767476,84.225,84.172,3.9340772]
[1771599851578,187.4893,84.297,84.172,3.9340772]
[1771599851579,2.21641412,84.292,84.172,3.9340772]
[1771599851878,10.6857,84.25,84.181,3.81898502]
[1771599852077,2.21641412,84.279,84.181,3.81898502]
[1771599852278,24.7221521,84.3,84.181,3.81898502]
[1771599852579,2.20708971,84.279,84.151,3.81898502]
[1771599852974,10.682,84.279,84.21,3.81898502]
[1771599853174,24.7221521,84.3,84.21,3.81898502]
[1771599853175,2.20708971,84.299,84.21,3.81898502]
[1771599853377,2.20708971,84.279,84.161,3.81898502]
[1771599853577,10.6868,84.242,84.179,10.6946]
[1771599853984,10.6821,84.278,84.209,10.6908]
[1771599854385,10.6821,84.278,84.21,3.81898502]
[1771599854585,10.6809,84.288,84.223,3.81898502]
[1771599854776,24.7221521,84.32,84.223,3.81898502]
[1771599854976,2.20516886,84.33,84.223,3.81898502]
[1771599855177,2.20516886,84.33,84.23,3.81898502]
[1771599855385,2.20516886,84.355,84.231,3.81898502]
[1771599855590,2.20516886,84.355,84.251,3.81898502]
[1771599855783,2.20516886,84.355,84.25,24.7221521]
[1771599855784,10.6745,84.339,84.265,3.81898502]
[1771599856087,2.20516886,84.349,84.238,3.81898502]
[1771599856387,2.20516886,84.349,84.24,3.81898502]
[1771599856685,2.18740379,84.329,84.24,3.81898502]
[1771599856885,2.18740379,84.316,84.191,3.81898502]
[1771599857185,2.18740379,84.316,84.21,24.7221521]
[1771599857386,2.18740379,84.342,84.23,24.7221521]
[1771599857886,24.7221521,84.36,84.25,24.7221521]
[1771599858383,2.18740379,84.359,84.23,24.7221521]
[1771599858683,14.52278227,84.421,84.225,166.2704]
[1771599858684,24.7221521,84.38,84.271,3.81898502]
[1771599858980,26.9782173,84.36,84.271,3.81898502]
[1771599859182,2.06417937,84.377,84.271,3.81898502]
[1771599859382,2.2560652,84.359,84.271,3.81898502]
[1771599859782,12.9257652,84.376,84.282,10.6816]
[1771599860087,2.2560652,84.375,84.271,3.81898502]
[1771599860582,2.2560652,84.375,84.25,190.9432521]
[1771599860583,2.2560652,84.375,84.251,3.81898502]
[1771599861182,2.2560652,84.375,84.284,3.81898502]
[1771599861380,2.2560652,84.375,84.224,166.2718]
[1771599861381,24.7221521,84.36,84.251,3.81898502]
[1771599861877,24.7221521,84.36,84.278,3.81898502]
[1771599862187,2.26265499,84.405,84.291,3.81898502]
[1771599862376,21.3165,84.467,84.304,3.81898502]
[1771599862377,2.26380263,84.393,84.304,3.81898502]
[1771599862775,2.063445,84.427,84.24,228.2402]
[1771599862776,2.26380263,84.379,84.279,3.81898502]
[1771599862981,165.8828,84.423,84.279,3.81898502]
[1771599862982,2.26380263,84.359,84.279,3.81898502]
[1771599863190,2.26380263,84.359,84.231,3.81898502]
[1771599863388,2.26380263,84.339,84.231,3.81898502]
[1771599863985,2.26380263,84.339,84.246,10.6861]
[1771599864283,2.26380263,84.319,84.231,3.81898502]
[1771599864477,24.7221521,84.34,84.271,10.683]
[1771599864685,2.18862984,84.345,84.255,3.81898502]
[1771599865085,24.7221521,84.36,84.255,3.81898502]
[1771599865278,2.18862984,84.359,84.255,3.81898502]
[1771599865578,24.7221521,84.34,84.257,3.81898502]
[1771599866387,2.21027909,84.339,84.257,3.81898502]
[1771599866585,24.7221521,84.32,84.231,3.81898502]
[1771599866885,2.21027909,84.299,84.205,3.81898502]
[1771599867294,2.21027909,84.299,84.222,3.81898502]
[1771599867791,24.7221521,84.32,84.222,3.81898502]
[1771599868185,2.21027909,84.326,84.24,10.6869]
[1771599868390,2.21027909,84.326,84.222,3.81898502]
[1771599868884,2.09960627,84.309,84.222,3.81898502]
[1771599869283,2.09960627,84.309,84.175,166.3687]
[1771599869284,2.09960627,84.309,84.227,3.81898502]
[1771599869481,2.09960627,84.339,84.227,3.81898502]
[1771599869788,2.09960627,84.319,84.227,3.81898502]
[1771599869990,2.09960627,84.319,84.237,3.81898502]
[1771599870486,2.09960627,84.319,84.24,3.81898502]
[1771599870685,10.6759,84.327,84.24,3.81898502]
[1771599870890,2.07510608,84.359,84.266,3.81898502]
[1771599871284,2.07510608,84.339,84.221,3.81898502]
[1771599871590,2.07510608,84.339,84.142,13.8470701]
[1771599871591,24.7221521,84.3,84.153,166.412]
[1771599871883,2.07510608,84.279,84.181,3.81898502]
[1771599872488,2.13365962,84.259,84.181,3.81898502]
[1771599872688,2.13365962,84.239,84.157,3.81898502]
[1771599873288,2.13365962,84.259,84.157,3.81898502]
[1771599873590,24.7221521,84.24,84.157,3.81898502]
[1771599873893,24.7221521,84.28,84.157,3.81898502]
[1771599874194,2.13365962,84.279,84.161,3.81898502]
[1771599874387,10.6863,84.245,84.161,3.81898502]
[1771599874992,24.7221521,84.24,84.161,3.81898502]
[1771599875195,2.07906984,84.254,84.161,3.81898502]
[1771599875492,10.6873,84.238,84.175,10.6951]
[1771599875788,2.07906984,84.254,84.161,3.81898502]
[1771599875990,2.07906984,84.239,84.161,3.81898502]
[1771599876492,2.07906984,84.239,84.162,3.81898502]
[1771599876692,24.7221521,84.24,84.162,3.81898502]
[1771599876993,2.00540132,84.263,84.174,3.81898502]
[1771599877191,2.00574042,84.279,84.174,3.81898502]
[1771599877391,24.7221521,84.26,84.174,3.81898502]
[1771599877587,2.00574042,84.279,84.174,3.81898502]
[1771599877988,10.6853,84.253,84.184,14.49076561]
[1771599878191,2.00574042,84.279,84.184,3.79686561]
[1771599878391,2.00572278,84.259,84.141,3.79686561]
[1771599878589,10.688,84.232,84.169,10.6959]
[1771599878790,10.688,84.232,84.141,3.79686561]
[1771599878791,24.7221521,84.24,84.141,3.79686561]
[1771599878990,2.00572278,84.259,84.141,3.79686561]
[1771599879291,10.686,84.247,84.177,3.79686561]
[1771599879497,2.00572278,84.259,84.177,3.79686561]
[1771599879697,2.00572278,84.259,84.179,3.79686561]
[1771599879992,9.67225507,84.25,84.179,3.79686561]
[1771599880200,10.6891,84.223,84.179,3.79686561]
[1771599880392,10.6891,84.223,84.151,3.79686561]
[1771599880587,9.67225507,84.23,84.151,3.79686561]
[1771599880787,1.95503637,84.229,84.151,3.79686561]
[1771599880987,9.67225507,84.23,84.121,3.79686561]
[1771599880988,1.95503637,84.209,84.121,3.79686561]
[1771599881193,9.67225507,84.19,84.121,3.79686561]
[1771599881389,10.6939,84.185,84.121,3.79686561]
[1771599881898,10.6939,84.185,84.056,166.6037]
[1771599881899,1.95503637,84.166,84.091,3.79686561]
[1771599882096,24.73699596,84.17,84.091,3.79686561]
[1771599882097,1.95503637,84.169,84.091,3.79686561]
[1771599882291,10.6979,84.154,84.091,3.79686561]
[1771599882486,1.95503637,84.169,84.051,3.79686561]
[1771599882791,10.6989,84.146,84.065,3.79686561]
[1771599882997,1.95503637,84.169,84.065,3.79686561]
[1771599883199,1.96847722,84.194,84.091,3.79686561]
[1771599883398,1.96847722,84.194,84.114,3.79686561]
[1771599883599,1.96847722,84.189,84.091,3.79686561]
[1771599883896,166.2821,84.22,84.035,2.06896552]
[1771599883897,1.96847722,84.169,84.066,3.79686561]
[1771599884104,1.96847722,84.161,84.066,3.79686561]
[1771599884798,1.95655652,84.169,84.066,3.79686561]
[1771599885494,166.2312,84.246,84.035,2.06896552]
[1771599885495,1.95655652,84.167,84.04,24.73699596]
[1771599885700,1.95655652,84.149,84.041,3.79686561]
[1771599885996,24.73699596,84.13,84.041,3.79686561]
[1771599886200,1.95655652,84.129,84.041,3.79686561]
[1771599886401,1.94291003,84.129,84.01,3.79686561]
[1771599887002,1.94291003,84.123,84.01,3.79686561]
[1771599887403,166.3917,84.165,84.01,3.79686561]
[1771599887404,1.94291003,84.101,84.01,3.79686561]
[1771599887790,1.94291003,84.101,84.011,3.79686561]
[1771599887995,24.73699596,84.09,84.011,3.79686561]
[1771599888196,1.94291003,84.102,84.011,3.79686561]
[1771599888592,1.9597641,84.089,83.987,3.79686561]
[1771599889098,24.73699596,84.07,83.976,3.79686561]
[1771599889295,1.9597641,84.069,83.976,3.79686561]
[1771599889494,26.69676006,84.09,83.976,3.79686561]
[1771599889804,1.9597641,84.09,84.01,3.79686561]
[1771599889998,1.9597641,84.089,84.01,3.79686561]
[1771599890202,10.7077,84.077,84.01,3.79686561]
[1771599890397,1.9597641,84.089,84.01,3.79686561]
[1771599890605,2.05572156,84.069,83.984,3.79686561]
[1771599890797,24.73699596,84.09,83.986,3.79686561]
[1771599891004,2.05572156,84.089,83.986,3.79686561]
[1771599891801,2.05572156,84.089,84.001,3.79686561]
[1771599892298,10.7075,84.079,84.001,3.79686561]
[1771599892600,2.05572156,84.089,84.001,3.79686561]
[1771599892797,2.05572156,84.089,84.012,10.7158]
[1771599892997,2.05572156,84.089,84.013,3.79686561]
[1771599893399,2.1117781,84.109,84.013,3.79686561]
[1771599893800,2.1117781,84.089,83.981,3.79686561]
[1771599894201,10.7075,84.079,83.996,3.79686561]
[1771599894401,166.4262,84.147,83.996,3.79686561]
[1771599894402,2.1117781,84.114,83.996,3.79686561]
[1771599894701,2.1117781,84.114,84.016,3.79686561]
[1771599895399,2.12482946,84.092,84.016,3.79686561]
[1771599895802,2.12482946,84.063,83.985,3.79686561]
[1771599895999,2.12482946,84.059,83.954,3.79686561]
[1771599896204,10.7125,84.039,83.954,3.79686561]
[1771599896406,2.12482946,84.059,83.954,3.79686561]
[1771599896806,10.7114,84.048,83.976,3.79686561]
[1771599897001,24.73699596,84.08,83.976,3.79686561]
[1771599897206,2.14305007,84.082,83.976,3.79686561]
[1771599897718,2.14305007,84.082,84.003,3.79686561]
[1771599898105,10.7097,84.061,83.982,3.79686561]
[1771599898502,2.14305007,84.082,83.982,3.79686561]
[1771599898703,10.707,84.082,84.006,3.79686561]
[1771599898905,2.12763274,84.106,84.006,3.79686561]
[1771599899102,2.12763274,84.133,84.028,3.79686561]
[1771599899611,2.12763274,84.133,84.051,3.79686561]
[1771599901207,2.25733201,84.156,84.062,3.79686561]
[1771599901505,24.73699596,84.18,84.062,3.79686561]
[1771599901506,2.25733201,84.178,84.062,3.79686561]
[1771599901815,2.25733201,84.136,84.062,3.79686561]
[1771599902406,2.25733201,84.136,84.037,3.79686561]
[1771599902607,2.26968857,84.129,84.037,3.79686561]
[1771599902812,10.7071,84.081,84.012,3.79686561]
[1771599903006,2.26968857,84.109,84.012,3.79686561]
[1771599903200,2.26968857,84.135,84.021,3.79686561]
[1771599903400,10.7031,84.113,84.044,3.79686561]
[1771599903605,2.26968857,84.135,84.044,3.79686561]
[1771599904305,2.26968857,84.129,84.011,3.79686561]
[1771599904512,10.7073,84.08,84.011,3.79686561]
[1771599904707,2.25040582,84.069,83.981,3.79686561]
[1771599905014,10.7122,84.042,83.971,3.79686561]
[1771599905310,2.25040582,84.049,83.971,3.79686561]
[1771599905906,2.25456966,84.039,83.954,3.73627434]
[1771599906308,2.25456966,84.01,83.953,18.28579295]
[1771599906503,37.22695099,84.05,83.954,3.73627434]
[1771599906707,10.7098,84.061,83.983,3.73627434]
[1771599907005,39.44963328,84.09,83.983,3.73627434]
[1771599907006,2.22268229,84.09,83.983,3.73627434]
[1771599907312,10.7062,84.089,84.0,3.64529143]
[1771599907502,166.4428,84.139,84.001,3.64529143]
[1771599907503,2.22336806,84.109,84.001,3.64529143]
[1771599907905,9.70934666,84.09,84.001,3.64529143]
[1771599908101,2.22336806,84.069,83.975,3.64529143]
[1771599908400,166.5142,84.103,83.975,3.64529143]
[1771599908401,9.70934666,84.04,83.975,3.64529143]
[1771599908602,1.4241246,84.04,83.954,3.64529143]
[1771599908811,9.70934666,84.05,83.961,3.64529143]
[1771599909013,1.4241246,84.049,83.961,3.64529143]
[1771599909208,1.4241246,84.049,83.971,3.64529143]
[1771599909514,9.70934666,84.04,83.971,3.64529143]
[1771599910103,10.713,84.036,83.971,3.64529143]
[1771599910303,1.4241246,84.039,83.953,18.28579295]
[1771599910502,1.45504579,83.999,83.953,9.295e-05]
[1771599910706,1.45504579,83.979,83.893,2.07227352]
[1771599910909,1.45504579,84.005,83.894,3.64529143]
[1771599911115,9.70934666,83.97,83.894,3.64529143]
[1771599911412,9.70934666,83.96,83.872,2.07295244]
[1771599911618,9.70934666,83.92,83.843,3.64529143]
[1771599911852,166.8011,83.958,83.822,2.07414471]
[1771599911853,1.45504579,83.899,83.822,2.07414471]
[1771599912009,9.70934666,83.88,83.791,3.64529143]
[1771599912208,1.45504579,83.859,83.765,3.64529143]
[1771599912410,1.4270224,83.909,83.765,3.64529143]
[1771599912610,9.70934666,83.88,83.781,3.64529143]
[1771599912816,10.7304,83.899,83.801,3.64529143]
[1771599913111,9.70934666,83.88,83.801,3.64529143]
[1771599913310,10.7292,83.908,83.821,3.64529143]
[1771599913709,9.70934666,83.9,83.821,3.64529143]
[1771599913911,10.7274,83.923,83.823,3.64529143]
[1771599914106,1.4270224,83.927,83.823,3.64529143]
[1771599914513,1.58411038,83.953,83.84,3.64529143]
[1771599914709,1.58411038,83.988,83.871,3.64529143]